bitfinex-derivatives/quotes_SOLF0:USTF0_20220108
["timestamp","ask_amount","ask_price","bid_price","bid_amount"]
[1641617178101,5.02217985,140.79,140.7,49.15547985]
[1641617179302,67.72969,140.8,140.74,5.02217985]
[1641617179505,27.66479,140.8,140.74,5.02217985]
[1641617181904,27.66479,140.8,140.76,5.02217985]
[1641617182907,31.66479,140.8,140.76,5.02217985]
[1641617183505,31.66479,140.8,140.74,5.02217985]
[1641617183806,38.90979,140.8,140.74,5.02217985]
[1641617184004,34.90979,140.8,140.74,5.02217985]
[1641617184608,38.90979,140.8,140.74,5.02217985]
[1641617185009,34.90979,140.8,140.74,5.02217985]
[1641617185209,38.90979,140.8,140.74,5.02217985]
[1641617185407,38.90979,140.8,140.71,16.65866097]
[1641617185408,43.93196985,140.8,140.73,5.02217985]
[1641617185611,39.93196985,140.8,140.73,5.02217985]
[1641617186310,43.93196985,140.8,140.73,5.02217985]
[1641617186809,43.93196985,140.8,140.72,5.02217985]
[1641617187009,27.66479,140.76,140.72,5.02217985]
[1641617187610,33.71079,140.76,140.71,6.73306776]
[1641617188510,33.71079,140.76,140.7,5.02217985]
[1641617190312,38.73296985,140.76,140.69,6.73309281]
[1641617191813,42.73296985,140.76,140.69,6.73309281]
[1641617192015,38.73296985,140.76,140.69,6.73309281]
[1641617192417,5.02217985,140.75,140.69,6.73309281]
[1641617192815,4.0,140.71,140.65,14.94777306]
[1641617193016,27.66479,140.68,140.65,14.94777306]
[1641617193215,33.56879,140.68,140.63,14.94777306]
[1641617194417,5.904,140.68,140.63,14.94777306]
[1641617194618,40.5618,140.75,140.63,14.94777306]
[1641617195021,83.17436306,140.75,140.63,27.66479]
[1641617196119,68.22659,140.75,140.64,14.94777306]
[1641617196520,31.66479,140.75,140.64,14.94777306]
[1641617197119,31.66479,140.75,140.65,14.94777306]
[1641617197319,31.66479,140.75,140.66,38.8925]
[1641617197822,4.0,140.74,140.66,38.8925]
[1641617198022,9.024,140.74,140.66,38.8925]
[1641617198622,9.024,140.74,140.64,14.94777306]
[1641617198821,44.0175,140.74,140.64,54.79607306]
[1641617199022,4.0,140.73,140.64,39.8483]
[1641617199221,27.66479,140.72,140.64,39.8483]
[1641617201025,27.66479,140.72,140.64,54.79607306]
[1641617201625,27.66479,140.72,140.64,39.8483]
[1641617202224,27.66479,140.75,140.64,39.8483]
[1641617202424,27.66479,140.75,140.64,51.0253]
[1641617202624,14.94777306,140.77,140.64,51.0253]
[1641617203224,14.94777306,140.77,140.68,27.66479]
[1641617203624,34.76605402,140.78,140.68,27.66479]
[1641617204025,34.76605402,140.78,140.69,37.6984]
[1641617204725,38.76605402,140.78,140.69,37.6984]
[1641617205125,34.76605402,140.78,140.69,37.6984]
[1641617205326,27.66479,140.78,140.69,37.6984]
[1641617205725,4.0,140.77,140.69,37.6984]
[1641617205926,10.77,140.77,140.69,37.6984]
[1641617206827,4.0,140.74,140.69,37.6984]
[1641617207026,4.0,140.74,140.68,27.66479]
[1641617207226,31.66479,140.74,140.68,27.66479]
[1641617207628,31.66479,140.74,140.66,37.9544]
[1641617207828,37.94879,140.74,140.66,37.9544]
[1641617209131,31.66479,140.74,140.66,37.9544]
[1641617209330,40.178,140.76,140.66,37.9544]
[1641617209532,40.178,140.76,140.66,44.6564]
[1641617210034,40.178,140.76,140.66,59.60417306]
[1641617211235,27.66479,140.75,140.67,27.66479]
[1641617213338,27.66479,140.75,140.67,50.53127199]
[1641617216238,31.66479,140.75,140.67,22.86648199]
[1641617217038,27.66479,140.75,140.67,22.86648199]
[1641617217240,27.66479,140.75,140.66,52.90217306]
[1641617218644,27.66479,140.75,140.67,22.87651727]
[1641617220643,14.94777306,140.77,140.67,22.87651727]
[1641617221044,14.94777306,140.78,140.68,14.94777306]
[1641617221246,14.94777306,140.78,140.71,27.66479]
[1641617221444,14.94777306,140.78,140.71,33.95979]
[1641617222245,73.7606,140.79,140.71,48.90756306]
[1641617222445,77.7606,140.79,140.71,21.24277306]
[1641617222645,73.7606,140.79,140.71,14.94777306]
[1641617223448,88.70837306,140.79,140.7,38.6059]
[1641617225448,27.66479,140.78,140.7,38.6059]
[1641617228252,27.66479,140.78,140.7,53.55367306]
[1641617228253,19.59711345,140.78,140.7,53.55367306]
[1641617228652,19.59711345,140.78,140.7,61.4784379]
[1641617229356,19.59711345,140.78,140.7,38.6059]
[1641617231357,73.7606,140.79,140.7,38.6059]
[1641617231557,73.7606,140.79,140.7,46.2149]
[1641617232158,14.94777306,140.8,140.7,46.2149]
[1641617233060,79.01166306,140.81,140.71,22.8759525]
[1641617233460,79.01166306,140.81,140.73,27.66479]
[1641617233861,3.31278241,140.8,140.73,27.66479]
[1641617234661,64.06389,140.81,140.74,1.71459438]
[1641617235461,3.31246219,140.8,140.74,1.71459438]
[1641617236265,64.06389,140.81,140.74,1.71459438]
[1641617236664,68.06389,140.81,140.74,1.71459438]
[1641617236864,64.06389,140.81,140.74,1.71459438]
[1641617237066,3.31173187,140.8,140.74,1.71459438]
[1641617239970,7.31173187,140.8,140.74,1.71459438]
[1641617240169,10.95373187,140.8,140.71,14.94777306]
[1641617240372,4.0,140.79,140.7,53.55367306]
[1641617241069,4.0,140.78,140.7,53.55367306]
[1641617241271,4.0,140.77,140.71,1.71281764]
[1641617241468,4.0,140.75,140.71,1.71281764]
[1641617241668,31.66479,140.76,140.71,1.71281764]
[1641617241869,27.66479,140.76,140.71,1.71281764]
[1641617242068,3.31173187,140.74,140.68,1.71281764]
[1641617242268,9.79073187,140.74,140.68,1.71281764]
[1641617243072,3.31173187,140.73,140.68,1.71281764]
[1641617243872,3.31173187,140.75,140.67,151.64780885]
[1641617244871,3.31173187,140.75,140.68,1.71197052]
[1641617247374,7.31173187,140.75,140.68,1.71197052]
[1641617247879,4.0,140.75,140.68,1.71197052]
[1641617249080,4.0,140.71,140.68,1.71197052]
[1641617249882,3.31336846,140.74,140.68,1.71197052]
[1641617250083,3.31336846,140.74,140.72,27.66479]
[1641617250485,25.70777306,140.78,140.72,27.66479]
[1641617250886,14.94777306,140.78,140.72,27.66479]
[1641617251284,80.6147,140.79,140.72,27.66479]
[1641617251684,4.0,140.78,140.72,27.66479]
[1641617252084,34.97730822,140.78,140.72,27.66479]
[1641617252285,34.97730822,140.78,140.7,35.4298]
[1641617252485,4.0,140.76,140.69,22.86575482]
[1641617252686,4.0,140.75,140.69,14.94777306]
[1641617252886,10.852,140.75,140.71,1.71307436]
[1641617253490,4.0,140.74,140.71,7.436e-05]
[1641617253689,5.02778042,140.72,140.67,5.02785478]
[1641617253890,12.41378042,140.72,140.67,5.02785478]
[1641617254091,40.07857042,140.72,140.67,5.02785478]
[1641617254690,40.07857042,140.72,140.67,5.02778042]
[1641617254892,5.02778042,140.71,140.66,39.15598042]
[1641617255693,40.07857042,140.72,140.66,34.1282]
[1641617257494,35.05079,140.72,140.66,34.1282]
[1641617259597,4.0,140.69,140.64,5.02778042]
[1641617260200,31.66479,140.69,140.64,5.02778042]
[1641617260801,31.66479,140.69,140.63,34.5115]
[1641617263806,27.66479,140.69,140.63,34.5115]
[1641617264107,4.0,140.67,140.62,5.02778042]
[1641617264308,27.66479,140.66,140.62,5.02778042]
[1641617264808,4.0,140.64,140.62,5.02778042]
[1641617265007,6.356,140.64,140.59,14.94777306]
[1641617265207,4.0,140.62,140.6,5.00810431]
[1641617265407,4.0,140.62,140.56,14.94777306]
[1641617265607,4.0,140.63,140.56,14.94777306]
[1641617265808,17.46458361,140.64,140.56,14.94777306]
[1641617266210,27.66479,140.61,140.56,14.94777306]
[1641617266709,27.66479,140.61,140.53,35.4689]
[1641617266909,7.10858361,140.64,140.53,35.4689]
[1641617268410,7.10858361,140.64,140.55,27.66479]
[1641617268809,7.10858361,140.64,140.53,39.4689]
[1641617269012,13.42958361,140.64,140.53,39.4689]
[1641617269612,13.42958361,140.64,140.53,54.41667306]
[1641617269811,13.42958361,140.64,140.53,50.41667306]
[1641617270212,13.42958361,140.64,140.53,54.41667306]
[1641617270411,7.10858361,140.64,140.55,27.66479]
[1641617270614,27.66479,140.66,140.55,31.66479]
[1641617270815,27.66479,140.66,140.56,4.0]
[1641617271219,27.66479,140.66,140.55,38.76983814]
[1641617271415,27.66479,140.66,140.56,22.82603269]
[1641617272216,27.66479,140.66,140.57,4.0]
[1641617272416,27.66479,140.66,140.59,27.66479]
[1641617273420,27.66479,140.66,140.56,14.94777306]
[1641617273619,32.79479,140.66,140.56,14.94777306]
[1641617274019,32.79479,140.66,140.55,49.7176112]
[1641617274220,5.13,140.66,140.58,4.0]
[1641617274421,5.13,140.66,140.62,27.66479]
[1641617274619,7.10656291,140.68,140.62,27.66479]
[1641617274818,7.10656291,140.68,140.6,27.66479]
[1641617275624,13.12356291,140.68,140.59,33.2142]
[1641617276525,40.78835291,140.68,140.59,33.2142]
[1641617282528,13.12356291,140.68,140.59,33.2142]
[1641617282728,7.10656291,140.68,140.59,38.0472]
[1641617284130,146.02836306,140.71,140.59,38.0472]
[1641617284328,11.1063104,140.68,140.59,33.2142]
[1641617284528,7.1063104,140.68,140.59,33.2142]
[1641617284730,27.66479,140.67,140.59,33.2142]
[1641617287831,111.13796306,140.71,140.59,33.2142]
[1641617288031,111.13796306,140.71,140.59,54.57797306]
[1641617288231,42.61256306,140.71,140.59,58.57797306]
[1641617288631,77.90556306,140.71,140.62,27.66479]
[1641617288834,62.95779,140.71,140.62,27.66479]
[1641617289534,66.95779,140.71,140.62,27.66479]
[1641617289733,62.95779,140.71,140.62,27.66479]
[1641617289932,70.06258574,140.71,140.62,27.66479]
[1641617290532,85.0103588,140.71,140.62,27.66479]
[1641617290735,77.90556306,140.71,140.62,27.66479]
[1641617291433,38.46479,140.72,140.62,27.66479]
[1641617291434,14.94777306,140.72,140.62,27.66479]
[1641617291632,14.94777306,140.72,140.65,4.0]
[1641617291833,14.94777306,140.72,140.67,4.0]
[1641617292532,39.80898519,140.75,140.66,18.94777306]
[1641617292732,27.66479,140.76,140.69,27.66479]
[1641617292932,27.66479,140.76,140.69,33.35579]
[1641617293633,14.94777306,140.77,140.69,33.35579]
[1641617294235,62.45279,140.78,140.69,33.35579]
[1641617294637,14.94777306,140.79,140.7,4.0]
[1641617294836,14.94777306,140.79,140.71,4.0]
[1641617295238,18.25468336,140.8,140.71,4.0]
[1641617296242,3.3069103,140.81,140.71,4.0]
[1641617296738,3.3069103,140.81,140.75,27.66479]
[1641617297839,27.66479,140.82,140.75,27.66479]
[1641617298039,27.66479,140.82,140.75,19.59720743]
[1641617298443,71.2421,140.83,140.75,19.59720743]
[1641617298642,42.61256306,140.84,140.75,19.59720743]
[1641617298841,14.94777306,140.84,140.78,27.66479]
[1641617299041,14.94777306,140.84,140.78,33.30479]
[1641617299841,7.306e-05,140.85,140.78,33.30479]
[1641617300242,7.306e-05,140.85,140.8,4.0]
[1641617300442,7.306e-05,140.85,140.78,33.30479]
[1641617300643,7.306e-05,140.85,140.8,4.0]
[1641617300842,7.306e-05,140.85,140.83,27.66479]
[1641617301143,39.80898519,140.88,140.83,27.66479]
[1641617301345,27.66479,140.9,140.83,27.66479]
[1641617306350,27.66479,140.9,140.83,32.55579]
[1641617307549,84.4561,140.91,140.83,32.55579]
[1641617307951,4.03197055,140.9,140.83,32.55579]
[1641617309652,4.03197055,140.9,140.83,27.66479]
[1641617310054,4.0,140.89,140.83,27.66479]
[1641617310250,4.0,140.88,140.83,27.66479]
[1641617310451,4.0,140.89,140.83,27.66479]
[1641617310850,5.971,140.9,140.83,27.66479]
[1641617311250,27.66479,140.9,140.83,27.66479]
[1641617311452,73.5961,140.91,140.83,27.66479]
[1641617311650,4.03198547,140.89,140.83,27.66479]
[1641617312053,4.03198547,140.9,140.83,27.66479]
[1641617312454,36.2586,140.91,140.83,27.66479]
[1641617312656,28.37785109,140.95,140.83,27.66479]
[1641617312657,6.0,141.18,141.16,4923.35815477]
[1641617312857,10.52,141.18,141.16,4934.89215477]
[1641617313055,10.52,141.18,141.17,4.0]
[1641617313254,202.84818188,141.25,141.17,4.0]
[1641617313255,202.84818188,141.25,141.17,59.32958]
[1641617313456,146.6357792,141.19,141.17,59.32958]
[1641617313656,120.3357792,141.19,141.18,4.0]
[1641617313855,79.7957792,141.19,141.18,4.0]
[1641617314055,35.61016795,141.22,141.18,4.80428989]
[1641617314257,30.21016795,141.22,141.21,4.0]
[1641617314455,202.84818188,141.25,141.21,4.0]
[1641617314456,159.91834983,141.25,141.21,6.563]
[1641617314655,7.07113562,141.39,141.18,20.0]
[1641617314856,7.07113562,141.39,141.21,4.682]
[1641617315058,4.0,141.37,141.21,4.682]
[1641617315258,4.0,141.4,141.26,7.06963591]
[1641617315456,4.0,141.31,141.26,6.065]
[1641617315656,4.0,141.27,141.26,6.065]
[1641617316056,4.0,141.28,141.26,6.065]
[1641617316256,4.0,141.3,141.26,6.065]
[1641617316456,4.0,141.36,141.26,6.065]
[1641617316656,4.0,141.3,141.22,7.07163567]
[1641617316856,7.07138564,141.39,141.23,7.07138564]
[1641617317058,4.0,141.3,141.23,7.07138564]
[1641617317359,4.0,141.3,141.24,27.66479]
[1641617317557,4.0,141.3,141.23,7.07138564]
[1641617317759,4.0,141.36,141.23,7.07138564]
[1641617317957,4.0,141.31,141.23,7.07138564]
[1641617318357,4.0,141.31,141.25,7.07013575]
[1641617318857,4.0,141.38,141.25,7.07013575]
[1641617319058,4.0,141.4,141.25,7.07013575]
[1641617319259,4.0,141.34,141.26,27.66479]
[1641617319460,27.66479,141.36,141.26,27.66479]
[1641617319660,4.0,141.33,141.26,27.66479]
[1641617319859,27.66479,141.36,141.26,27.66479]
[1641617320262,4.0,141.37,141.26,47.66479]
[1641617320459,4.0,141.42,141.35,7.06539019]
[1641617320659,105.0475,141.51,141.38,7.06389291]
[1641617320860,36.3962,141.51,141.38,11.06389291]
[1641617321062,4.0,141.46,141.42,7.06189753]
[1641617321260,4.0,141.46,141.45,27.66479]
[1641617321460,4.0,141.48,141.43,27.66479]
[1641617321863,27.66479,141.54,141.43,27.66479]
[1641617322063,24.09764241,141.47,141.43,35.07879]
[1641617322463,27.66479,141.56,141.43,35.07879]
[1641617322664,27.66479,141.56,141.44,7.06090026]
[1641617323065,27.66479,141.56,141.43,35.07879]
[1641617323266,27.66479,141.53,141.43,35.07879]
[1641617323467,4.0,141.5,141.43,35.07879]
[1641617323666,27.66479,141.53,141.43,35.07879]
[1641617323866,4.0,141.5,141.43,35.07879]
[1641617324468,4.0,141.51,141.43,35.07879]
[1641617324667,31.66479,141.53,141.43,42.14018886]
[1641617324867,27.66479,141.53,141.43,42.14018886]
[1641617325868,4.0,141.52,141.43,42.14018886]
[1641617326169,4.0,141.5,141.43,42.14018886]
[1641617326372,4.0,141.52,141.43,42.14018886]
[1641617326568,4.0,141.5,141.43,42.14018886]
[1641617326969,6.606,141.5,141.43,34.72618886]
[1641617327169,4.0,141.44,141.35,7.0651406]
[1641617327370,4.0,141.41,141.36,27.66479]
[1641617327574,5.724,141.41,141.36,27.66479]
[1641617327771,9.724,141.41,141.36,27.66479]
[1641617327972,5.724,141.41,141.36,27.66479]
[1641617328973,4.0,141.37,141.36,27.66479]
[1641617329171,31.66479,141.43,141.36,27.66479]
[1641617329373,4.0,141.43,141.36,27.66479]
[1641617329972,4.0,141.43,141.37,1.70668008]
[1641617330373,4.01720201,141.42,141.37,1.70668008]
[1641617330574,8.01720201,141.42,141.37,1.70668008]
[1641617330774,4.01720201,141.42,141.37,1.70668008]
[1641617331378,4.0,141.45,141.37,8.77107201]
[1641617331978,4.0,141.44,141.38,1.70668008]
[1641617332380,4.0,141.43,141.38,1.70668008]
[1641617332579,4.0,141.42,141.38,1.70668008]
[1641617332781,11.329,141.42,141.38,1.70668008]
[1641617332981,4.0,141.41,141.38,1.70668008]
[1641617333583,4.0,141.41,141.37,1.70668008]
[1641617334584,27.66479,141.45,141.37,1.70668008]
[1641617334783,4.0,141.45,141.37,1.70668008]
[1641617334984,4.0,141.45,141.35,1.70668008]
[1641617335184,4.0,141.51,141.36,7.06464147]
[1641617335383,4.0,141.51,141.4,27.66479]
[1641617335584,4.0,141.51,141.42,7.06164819]
[1641617335788,96.75419,141.53,141.42,7.06164819]
[1641617335983,4.0,141.5,141.42,7.06164819]
[1641617336386,4.0,141.5,141.43,1.70668008]
[1641617336985,4.0,141.51,141.43,1.70668008]
[1641617337385,4.0,141.51,141.47,27.66479]
[1641617337987,4.0,141.51,141.48,1.70668008]
[1641617338387,4.0,141.49,141.48,1.70668008]
[1641617338586,9.731,141.49,141.33,4.0]
[1641617338786,4.0,141.44,141.38,7.06364343]
[1641617338987,10.113,141.44,141.38,7.06364343]
[1641617339186,6.113,141.44,141.38,7.06364343]
[1641617339387,6.113,141.44,141.43,27.66479]
[1641617339588,31.66479,141.55,141.43,27.66479]
[1641617339788,31.66479,141.55,141.43,29.24657815]
[1641617339987,27.66479,141.55,141.43,29.24657815]
[1641617340188,8.01470863,141.54,141.44,1.58178815]
[1641617340388,4.0,141.53,141.44,1.58178815]
[1641617340588,8.01470863,141.54,141.44,1.58178815]
[1641617340789,4.01470863,141.53,141.44,1.58178815]
[1641617341091,8.79816496,141.53,141.44,1.58178815]
[1641617341290,12.79816496,141.53,141.44,1.58178815]
[1641617341690,4.0,141.5,141.44,1.58178815]
[1641617342691,4.0,141.45,141.44,1.58178815]
[1641617342893,10.378,141.45,141.44,1.58178815]
[1641617343091,10.378,141.45,141.36,11.8480978]
[1641617343292,4.0,141.44,141.36,11.8480978]
[1641617343492,4.0,141.44,141.37,27.66479]
[1641617344093,6.378,141.45,141.37,27.66479]
[1641617344492,6.378,141.45,141.39,7.06339396]
[1641617344692,4.78345633,141.49,141.38,1.26776385]
[1641617344892,4.78345633,141.49,141.42,7.06164819]
[1641617345093,8.78345633,141.49,141.42,7.06164819]
[1641617345292,8.78345633,141.49,141.43,1.26776385]
[1641617345492,4.78345633,141.49,141.43,28.93255385]
[1641617345694,4.0,141.5,141.43,28.93255385]
[1641617346093,4.78345633,141.52,141.43,28.93255385]
[1641617346295,4.0,141.51,141.44,1.26776385]
[1641617346494,8.78345633,141.51,141.44,1.26776385]
[1641617346894,4.0,141.5,141.44,1.26776385]
[1641617347095,8.01488384,141.5,141.44,1.26776385]
[1641617347295,4.0,141.49,141.44,1.26776385]
[1641617347696,4.78345633,141.51,141.44,1.26776385]
[1641617347897,4.78345633,141.51,141.44,8.00176385]
[1641617349001,72.6284824,141.57,141.45,1.26776385]
[1641617349002,4.0,141.5,141.45,1.26776385]
[1641617349199,4.0,141.49,141.45,1.26776385]
[1641617349397,10.811,141.5,141.45,1.26776385]
[1641617349798,10.811,141.5,141.43,27.66479]
[1641617349799,8.01510818,141.49,141.44,1.26776385]
[1641617349999,4.01510818,141.49,141.44,1.26776385]
[1641617350299,4.78345633,141.47,141.44,1.26776385]
[1641617351200,4.78345633,141.48,141.44,1.26776385]
[1641617351502,4.78345633,141.48,141.44,8.60676385]
[1641617351902,4.78345633,141.48,141.44,15.66766411]
[1641617352100,14.36094054,141.51,141.45,4.0]
[1641617352301,4.98930799,141.5,141.45,1.26776385]
[1641617353103,14.36094054,141.54,141.45,1.26776385]
[1641617353603,14.36094054,141.54,141.46,27.66479]
[1641617354006,14.36094054,141.54,141.47,1.26776385]
[1641617354207,3.22902716,141.54,141.47,1.26776385]
[1641617355007,4.0,141.52,141.47,1.26776385]
[1641617355209,3.22902716,141.55,141.47,1.26776385]
[1641617355407,7.22902716,141.55,141.47,1.26776385]
[1641617355810,4.0,141.54,141.47,1.26776385]
[1641617356010,3.22902716,141.54,141.47,1.26776385]
[1641617356613,3.22902716,141.55,141.47,1.26776385]
[1641617358612,3.22902716,141.55,141.46,26.91908534]
[1641617359413,3.22902716,141.55,141.47,4.0]
[1641617359616,3.22902716,141.55,141.51,27.66479]
[1641617360214,3.22902716,141.55,141.52,0.98177246]
[1641617360413,3.22902716,141.58,141.52,0.98177246]
[1641617361015,4.01293371,141.57,141.52,0.98177246]
[1641617361214,9.63893371,141.57,141.52,0.98177246]
[1641617362016,5.626,141.57,141.52,4.98177246]
[1641617362215,5.626,141.57,141.53,4.0]
[1641617362516,14.36094054,141.59,141.53,4.98177246]
[1641617362914,4.054e-05,141.59,141.57,4.0]
[1641617363115,4.054e-05,141.59,141.58,4.0]
[1641617363414,4.054e-05,141.63,141.58,12.03569973]
[1641617363615,4.054e-05,141.63,141.62,27.66479]
[1641617364015,32.9519824,141.66,141.62,31.66479]
[1641617364215,95.63918764,141.75,141.65,11.05019741]
[1641617364418,11.05019741,141.81,141.66,4.0]
[1641617364419,3.21386197,141.69,141.66,4.0]
[1641617364815,3.21386197,141.69,141.65,11.05019741]
[1641617365016,3.21386197,141.69,141.65,7.05019741]
[1641617365216,57.38351259,141.76,141.66,4.98177246]
[1641617365416,4.0,141.78,141.68,7.04895499]
[1641617365716,4.00851975,141.75,141.72,27.66479]
[1641617366017,4.00851975,141.77,141.73,0.98177246]
[1641617366218,8.00851975,141.77,141.73,0.98177246]
[1641617366416,4.00851975,141.77,141.73,0.98177246]
[1641617366616,15.84251596,141.8,141.73,0.98177246]
[1641617366817,19.84251596,141.8,141.73,0.98177246]
[1641617367018,4.00851975,141.79,141.73,0.98177246]
[1641617367817,4.00851975,141.79,141.71,0.98177246]
[1641617368619,4.0,141.78,141.71,0.98177246]
[1641617369022,4.00851975,141.79,141.71,0.98177246]
[1641617369220,4.00851975,141.77,141.71,0.98177246]
[1641617369622,4.00851975,141.79,141.73,27.66479]
[1641617370021,4.0,141.76,141.74,0.98177246]
[1641617370521,4.00851975,141.75,141.74,0.98177246]
[1641617370820,10.23651975,141.75,141.74,0.98177246]
[1641617371020,10.23651975,141.75,141.71,0.98177246]
[1641617371221,14.23651975,141.75,141.71,0.98177246]
[1641617371421,4.00851975,141.74,141.66,0.98177246]
[1641617371621,4.00851975,141.74,141.67,27.66479]
[1641617372422,4.00851975,141.74,141.68,0.98177246]
[1641617373222,4.00851975,141.78,141.68,0.98177246]
[1641617373621,4.00851975,141.78,141.7,27.66479]
[1641617374223,8.00851975,141.78,141.71,0.98177246]
[1641617374425,4.00851975,141.78,141.71,0.98177246]
[1641617374623,10.78,141.8,141.71,0.98177246]
[1641617374624,4.00851975,141.77,141.71,0.98177246]
[1641617375123,4.0,141.78,141.71,0.98177246]
[1641617375324,8.00851975,141.79,141.71,0.98177246]
[1641617375523,4.00851975,141.77,141.71,0.98177246]
[1641617375923,4.0,141.78,141.71,0.98177246]
[1641617376522,4.00851975,141.77,141.71,0.98177246]
[1641617378724,4.00851975,141.8,141.71,0.98177246]
[1641617379625,4.00851975,141.8,141.75,27.66479]
[1641617379830,4.00851975,141.81,141.75,33.72779]
[1641617380228,4.00851975,141.81,141.76,0.98177246]
[1641617380628,8.00851975,141.81,141.76,0.98177246]
[1641617380829,4.00851975,141.81,141.76,0.98177246]
[1641617381229,8.00851975,141.81,141.76,0.98177246]
[1641617381831,4.00851975,141.8,141.76,0.98177246]
[1641617382634,4.00851975,141.82,141.76,0.98177246]
[1641617382832,4.00851975,141.82,141.76,7.53977246]
[1641617383636,8.00851975,141.83,141.77,0.98177246]
[1641617384033,4.00851975,141.82,141.77,0.98177246]
[1641617384435,4.00851975,141.82,141.76,0.98177246]
[1641617388640,4.0,141.81,141.76,0.98177246]
[1641617388838,4.0,141.81,141.7,27.66479]
[1641617389238,8.892,141.81,141.7,27.66479]
[1641617389438,4.892,141.81,141.7,27.66479]
[1641617389640,4.0,141.79,141.7,27.66479]
[1641617389839,4.0,141.78,141.7,27.66479]
[1641617390038,11.07,141.78,141.71,0.80161126]
[1641617390241,4.0,141.72,141.59,136.8303]
[1641617390449,4.0,141.71,141.58,11.05392727]
[1641617390639,4.0,141.7,141.58,7.05392727]
[1641617390839,4.0,141.71,141.58,7.05392727]
[1641617391039,4.0,141.7,141.58,7.05392727]
[1641617391241,4.0,141.71,141.58,7.05392727]
[1641617391540,4.00978491,141.7,141.6,4.0]
[1641617391740,4.00978491,141.7,141.64,27.66479]
[1641617392440,8.00978491,141.7,141.64,27.66479]
[1641617392642,4.00978491,141.71,141.65,0.80195698]
[1641617393043,4.00978491,141.72,141.65,0.80195698]
[1641617393542,11.91598597,141.72,141.66,4.0]
[1641617393742,11.91598597,141.72,141.69,27.66479]
[1641617393941,11.91598597,141.72,141.7,4.0]
[1641617394142,11.91598597,141.72,141.69,33.09079]
[1641617394341,54.45217162,141.74,141.69,33.09079]
[1641617394542,14.9645047,141.74,141.7,0.80195698]
[1641617395342,11.91154468,141.76,141.7,0.80195698]
[1641617395343,14.9645047,141.76,141.7,0.80195698]
[1641617395744,14.9645047,141.76,141.72,27.66479]
[1641617396146,14.9645047,141.75,141.72,27.66479]
[1641617396344,14.9645047,141.75,141.73,0.80195698]
[1641617397546,4.0,141.74,141.62,14.9645047]
[1641617397748,27.66479,141.72,141.65,27.66479]
[1641617398047,37.29079,141.72,141.65,27.66479]
[1641617398446,4.0,141.71,141.65,27.66479]
[1641617398646,33.29079,141.72,141.65,27.66479]
[1641617398847,14.9645047,141.7,141.65,27.66479]
[1641617399049,14.9645047,141.7,141.66,0.80189827]
[1641617400052,14.9645047,141.69,141.66,0.80189827]
[1641617400250,21.0245047,141.69,141.66,0.80189827]
[1641617400751,21.0245047,141.69,141.64,0.80189827]
[1641617402651,6.06,141.69,141.64,0.80189827]
[1641617403452,4.0,141.67,141.62,0.80189827]
[1641617403653,18.9645047,141.68,141.62,0.80189827]
[1641617404353,4.0,141.68,141.62,0.80189827]
[1641617404753,4.0,141.63,141.62,0.80189827]
[1641617404954,9.531,141.63,141.54,14.9645047]
[1641617405154,5.531,141.63,141.53,14.9645047]
[1641617405757,4.0,141.62,141.53,14.9645047]
[1641617405955,27.66479,141.6,141.53,42.6292947]
[1641617406155,7.016,141.6,141.53,31.66479]
[1641617406355,7.016,141.6,141.54,0.80212043]
[1641617407156,11.016,141.6,141.54,0.80212043]
[1641617407657,7.016,141.6,141.54,0.80212043]
[1641617407858,33.19579,141.63,141.54,0.80212043]
[1641617408057,33.19579,141.63,141.56,27.66479]
[1641617408558,5.531,141.63,141.56,27.66479]
[1641617408760,27.66479,141.65,141.57,0.80212043]
[1641617410462,7.05741205,141.67,141.57,0.80212043]
[1641617410663,14.9645047,141.68,141.6,7.05268355]
[1641617410864,14.9645047,141.68,141.57,11.8562965]
[1641617411064,5.142,141.71,141.57,11.8562965]
[1641617411468,5.142,141.71,141.58,4.80212043]
[1641617412063,5.142,141.71,141.63,27.66479]
[1641617412265,4.0,141.7,141.61,27.66479]